fUST/lending_fUST_20250208
["ID","MTS","AMOUNT","RATE_DAILY","PERIOD"]
[352110987,1738951848404,-500.0,0.00011232,2]
[352110989,1738951848413,-500.0,0.00011232,2]
[352110991,1738951848422,-500.0,0.00011232,2]
[352110993,1738951848433,-1612.79,0.00011232,2]
[352110995,1738951848442,-500.0,0.00011232,2]
[352110997,1738951848451,-500.0,0.00011232,2]
[352110999,1738951848460,-500.0,0.00011232,2]
[352111001,1738951848470,-937.89,0.00011232,2]
[352111003,1738951848479,-779.21,0.00011232,2]
[352111005,1738951848490,-955.08,0.00011232,2]
[352111007,1738951848499,-500.0,0.00011232,2]
[352111009,1738951848510,-652.09,0.00011232,2]
[352111011,1738951848519,-500.0,0.00011232,2]
[352111013,1738951848529,-500.0,0.00011232,2]
[352111015,1738951848539,-500.0,0.00011232,2]
[352111017,1738951848550,-500.0,0.00011232,2]
[352111019,1738951848559,-500.0,0.00011232,2]
[352111021,1738951848573,-958.01,0.00011232,2]
[352111023,1738951848584,-910.53,0.00011232,2]
[352111025,1738951848594,-500.0,0.00011232,2]
[352111027,1738951848604,-500.0,0.00011232,2]
[352111029,1738951848617,-819.51,0.00011232,2]
[352111031,1738951848627,-500.0,0.00011232,2]
[352111033,1738951848637,-500.0,0.00011232,2]
[352111035,1738951848646,-3840.07,0.00011232,2]
[352111036,1738951848656,-500.0,0.00011232,2]
[352111038,1738951848666,-500.0,0.00011232,2]
[352111040,1738951848676,-766.23,0.00011232,2]
[352111043,1738951848688,-500.0,0.00011232,2]
[352111045,1738951848703,-500.0,0.00011232,2]
[352111047,1738951848713,-500.0,0.00011232,2]
[352111048,1738951848723,-500.0,0.00011232,2]
[352111050,1738951848733,-500.0,0.00011232,2]
[352111052,1738951848743,-839.8,0.00011232,2]
[352111054,1738951848753,-500.0,0.00011232,2]
[352111056,1738951848762,-3029.27,0.00011232,2]
[352111058,1738951848771,-500.0,0.00011232,2]
[352111060,1738951848782,-1555.5,0.00011232,2]
[352111062,1738951848792,-500.0,0.00011232,2]
[352111064,1738951848802,-500.0,0.00011232,2]
[352111066,1738951848812,-500.0,0.00011232,2]
[352111068,1738951848822,-507.7,0.00011232,2]
[352111070,1738951848833,-500.0,0.00011232,2]
[352111072,1738951848843,-646.63,0.00011232,2]
[352111074,1738951848853,-500.0,0.00011232,2]
[352111076,1738951848863,-500.0,0.00011232,2]
[352111094,1738951849025,-500.0,0.00011232,2]
[352111096,1738951849040,-500.0,0.00011232,2]
[352111098,1738951849051,-500.0,0.00011232,2]
[352111100,1738951849063,-500.0,0.00011232,2]
[352111102,1738951849074,-500.0,0.00011232,2]
[352111104,1738951849085,-500.0,0.00011232,2]
[352111106,1738951849096,-832.81,0.00011232,2]
[352111108,1738951849107,-6257.88,0.00011232,2]
[352111110,1738951849117,-500.0,0.00011232,2]
[352111112,1738951849129,-734.68,0.00011232,2]
[352111114,1738951849140,-10397.88,0.00011232,2]
[352111116,1738951849151,-500.0,0.00011232,2]
[352111118,1738951849163,-654.99,0.00011232,2]
[352111120,1738951849173,-500.0,0.00011232,2]
[352111122,1738951849183,-500.0,0.00011232,2]
[352111124,1738951849194,-690.07,0.00011232,2]
[352111126,1738951849205,-500.0,0.00011232,2]
[352111128,1738951849215,-525.76,0.00011232,2]
[352111130,1738951849225,-500.0,0.00011232,2]
[352111132,1738951849235,-1266.87,0.00011232,2]
[352111134,1738951849251,-2200.03,0.00011232,2]
[352111136,1738951849261,-4185.0,0.00011232,2]
[352111138,1738951849271,-4706.93,0.00011232,2]
[352111140,1738951849282,-837.48,0.00011232,2]
[352111142,1738951849292,-2108.12,0.00011232,2]
[352111144,1738951849304,-910.19,0.00011232,2]
[352111146,1738951849316,-500.0,0.00011232,2]
[352111148,1738951849328,-500.0,0.00011232,2]
[352111150,1738951849339,-4782.15,0.00011232,2]
[352111152,1738951849350,-500.0,0.00011232,2]
[352111154,1738951849360,-500.0,0.00011232,2]
[352111156,1738951849372,-500.0,0.00011232,2]
[352111158,1738951849383,-500.0,0.00011232,2]
[352111160,1738951849394,-500.0,0.00011232,2]
[352111162,1738951849405,-500.0,0.00011232,2]
[352111164,1738951849417,-522.44,0.00011232,2]
[352111166,1738951849427,-14855.49,0.00011232,2]
[352111168,1738951849437,-1015.7,0.00011232,2]
[352111170,1738951849447,-500.0,0.00011232,2]
[352111172,1738951849457,-500.0,0.00011232,2]
[352111174,1738951849468,-500.0,0.00011232,2]
[352111176,1738951849478,-1899.91,0.00011232,2]
[352111178,1738951849492,-500.0,0.00011232,2]
[352111180,1738951849502,-500.0,0.00011232,2]
[352111182,1738951849513,-1080.87,0.00011232,2]
[352111184,1738951849524,-500.0,0.00011232,2]
[352111186,1738951849535,-42882.94,0.00011232,2]
[352111188,1738951849545,-500.0,0.00011232,2]
[352111190,1738951849555,-2217.79,0.00011232,2]
[352111192,1738951849564,-588.55,0.00011232,2]
[352111194,1738951849575,-500.0,0.00011232,2]
[352111196,1738951849585,-458.54865058,0.00011232,2]
[352111198,1738951849595,-1184.64,0.00011232,2]
[352111200,1738951849605,-500.0,0.00011232,2]
[352111202,1738951849616,-5616.92,0.00011232,2]
[352111204,1738951849625,-500.0,0.00011232,2]
[352111206,1738951849637,-500.0,0.00011232,2]
[352111208,1738951849647,-694.18,0.00011232,2]
[352111210,1738951849658,-500.0,0.00011232,2]
[352111212,1738951849668,-2028.94,0.00011232,2]
[352111214,1738951849678,-500.0,0.00011232,2]
[352111216,1738951849691,-500.0,0.00011232,2]
[352111219,1738951849701,-500.0,0.00011232,2]
[352111221,1738951849710,-2546.25,0.00011232,2]
[352111222,1738951849720,-693.43,0.00011232,2]
[352111224,1738951849730,-7043.68,0.00011232,2]
[352111226,1738951849741,-500.0,0.00011232,2]
[352111229,1738951849751,-1608.85,0.00011232,2]
[352111231,1738951849761,-1043.44,0.00011232,2]
[352111233,1738951849771,-5757.71,0.00011232,2]
[352111235,1738951849780,-500.0,0.00011232,2]
[352111237,1738951849790,-2238.72,0.00011232,2]
[352111239,1738951849799,-500.0,0.00011232,2]
[352111241,1738951849809,-500.0,0.00011232,2]
[352111243,1738951849818,-160.61,0.00011232,2]
[352111245,1738951849828,-561.48157875,0.00011232,2]
[352111247,1738951849837,-500.0,0.00011232,2]
[352111249,1738951849847,-961.33,0.00011232,2]
[352111251,1738951849856,-2939.94,0.00011232,2]
[352111253,1738951849865,-500.0,0.00011232,2]
[352111254,1738951849874,-572.15,0.00011232,2]
[352111255,1738951849884,-2793.36,0.00011232,2]
[352111256,1738951849894,-235.941853,0.00011232,2]
[352111257,1738951849903,-754.7,0.00011232,2]
[352111258,1738951849912,-500.0,0.00011232,2]
[352111259,1738951849921,-235.941853,0.00011232,2]
[352111260,1738951849930,-500.0,0.00011232,2]
[352111261,1738951849939,-14498.7,0.00011232,2]
[352111262,1738951849948,-500.0,0.00011232,2]
[352111263,1738951849957,-1614.6,0.00011232,2]
[352111264,1738951849966,-500.0,0.00011232,2]
[352111265,1738951849975,-1570.52,0.00011232,2]
[352111267,1738951849984,-651.77,0.00011232,2]
[352111269,1738951849995,-500.0,0.00011232,2]
[352111271,1738951850005,-500.0,0.00011232,2]
[352111273,1738951850014,-500.0,0.00011273,2]
[352111275,1738951850024,-500.0,0.00011273,2]
[352111277,1738951850037,-500.0,0.00011273,2]
[352111278,1738951850047,-12223.04203477,0.00011293,2]
[352111281,1738951850057,-151.0,0.000113,2]
[352111283,1738951850067,-151.0,0.000113,2]
[352111284,1738951850077,-151.0,0.000113,2]
[352111286,1738951850086,-151.0,0.000113,2]
[352111288,1738951850095,-151.0,0.000113,2]
[352111290,1738951850104,-813.992435,0.00011368,2]
[352111292,1738951850115,-813.992435,0.00011368,2]
[352111294,1738951850125,-356.341764,0.00011369,2]
[352111296,1738951850135,-356.341764,0.00011369,2]
[352111298,1738951850145,-500.0,0.00011369,2]
[352111301,1738951850155,-500.0,0.00011369,2]
[352111303,1738951850165,-500.0,0.00011369,2]
[352111305,1738951850174,-500.0,0.00011369,2]
[352111307,1738951850183,-500.0,0.00011369,2]
[352111309,1738951850193,-500.0,0.00011369,2]
[352111310,1738951850204,-500.0,0.00011369,2]
[352111312,1738951850213,-308.73083876,0.00011369,2]
[352111314,1738951850223,-500.0,0.00011369,2]
[352111316,1738951850233,-500.0,0.00011369,2]
[352111318,1738951850246,-500.0,0.00011369,2]
[352111320,1738951850256,-500.0,0.00011369,2]
[352111322,1738951850265,-580.09,0.00011369,2]
[352111325,1738951850276,-500.0,0.00011369,2]
[352111327,1738951850287,-500.0,0.00011369,2]
[352111329,1738951850297,-500.0,0.00011369,2]
[352111331,1738951850308,-500.0,0.00011369,2]
[352111333,1738951850318,-500.0,0.00011369,2]
[352111335,1738951850329,-500.0,0.00011369,2]
[352111337,1738951850338,-411.07,0.00011369,2]
[352111338,1738951850349,-500.0,0.00011369,2]
[352111340,1738951850359,-500.0,0.00011369,2]
[352111342,1738951850369,-500.0,0.00011369,2]
[352111344,1738951850378,-500.0,0.00011369,2]
[352111346,1738951850387,-917.41,0.00011369,2]
[352111348,1738951850397,-500.0,0.00011369,2]
[352111350,1738951850407,-500.0,0.00011369,2]
[352111352,1738951850416,-500.0,0.00011369,2]
[352111354,1738951850426,-500.0,0.00011369,2]
[352111356,1738951850435,-500.0,0.00011369,2]
[352111358,1738951850445,-500.0,0.00011369,2]
[352111360,1738951850455,-773.62,0.00011369,2]
[352111362,1738951850463,-500.0,0.00011369,2]
[352111364,1738951850472,-500.0,0.00011369,2]
[352111366,1738951850481,-1254.09,0.00011369,2]
[352111369,1738951850495,-500.0,0.00011369,2]
[352111371,1738951850505,-500.0,0.00011369,2]
[352111373,1738951850515,-500.0,0.00011369,2]
[352111375,1738951850525,-592.23,0.00011369,2]
[352111377,1738951850534,-500.0,0.00011369,2]
[352111379,1738951850544,-1316.79,0.00011369,2]
[352111381,1738951850553,-500.0,0.00011369,2]
[352111383,1738951850563,-510.73417257,0.00011369,2]
[352111384,1738951850572,-1206.3,0.00011369,2]
[352111386,1738951850582,-500.0,0.00011369,2]
[352111388,1738951850592,-500.0,0.00011369,2]
[352111390,1738951850602,-500.0,0.00011369,2]
[352111392,1738951850611,-500.0,0.00011369,2]
[352111395,1738951850621,-500.0,0.00011369,2]
[352111397,1738951850631,-882.13,0.00011369,2]
[352111398,1738951850640,-228.63496614,0.00011369,2]
[352111400,1738951850650,-500.0,0.00011369,2]
[352111402,1738951850660,-500.0,0.00011369,2]
[352111404,1738951850670,-500.0,0.00011369,2]
[352111407,1738951850680,-565.71,0.00011369,2]
[352111409,1738951850690,-500.0,0.00011369,2]
[352111410,1738951850699,-500.0,0.00011369,2]
[352111413,1738951850708,-500.0,0.00011369,2]
[352111414,1738951850718,-500.0,0.00011369,2]
[352111416,1738951850727,-500.0,0.00011369,2]
[352111418,1738951850738,-500.0,0.00011369,2]
[352111421,1738951850748,-500.0,0.00011369,2]
[352111423,1738951850757,-278.83680919,0.00011369,2]
[352111425,1738951850767,-500.0,0.00011369,2]
[352111426,1738951850777,-500.0,0.00011369,2]
[352111428,1738951850786,-500.0,0.00011369,2]
[352111430,1738951850795,-500.0,0.00011369,2]
[352111432,1738951850805,-500.0,0.00011369,2]
[352111434,1738951850814,-500.0,0.00011369,2]
[352111436,1738951850823,-500.0,0.00011369,2]
[352111438,1738951850832,-500.0,0.00011369,2]
[352111441,1738951850842,-500.0,0.00011369,2]
[352111443,1738951850851,-500.0,0.00011369,2]
[352111445,1738951850861,-500.0,0.00011369,2]
[352111447,1738951850871,-812.31,0.00011369,2]
[352111448,1738951850880,-500.0,0.00011369,2]
[352111451,1738951850891,-500.0,0.00011369,2]
[352111452,1738951850901,-583.15,0.00011369,2]
[352111455,1738951850911,-981.58,0.00011369,2]
[352111456,1738951850920,-500.0,0.00011369,2]
[352111459,1738951850930,-500.0,0.00011369,2]
[352111461,1738951850939,-500.0,0.00011369,2]
[352111462,1738951850949,-858.36,0.00011369,2]
[352111465,1738951850958,-500.0,0.00011369,2]
[352111466,1738951850967,-500.0,0.00011369,2]
[352111468,1738951850977,-500.0,0.00011369,2]
[352111470,1738951850986,-500.0,0.00011369,2]
[352111472,1738951850997,-500.0,0.00011369,2]
[352111474,1738951851008,-500.0,0.00011369,2]
[352111477,1738951851018,-295.52794193,0.00011369,2]
[352111479,1738951851028,-500.0,0.00011369,2]
[352111481,1738951851040,-500.0,0.00011369,2]
[352111483,1738951851050,-500.0,0.00011369,2]
[352111485,1738951851060,-638.72,0.00011369,2]
[352111487,1738951851070,-500.0,0.00011369,2]
[352111489,1738951851080,-788.54,0.00011369,2]
[352111491,1738951851090,-500.0,0.00011369,2]
[352111493,1738951851100,-1348.78,0.00011369,2]
[352111495,1738951851110,-18928.19,0.00011369,2]
[352111497,1738951851121,-500.0,0.00011369,2]
[352111499,1738951851131,-500.0,0.00011369,2]
[352111501,1738951851142,-500.0,0.00011369,2]
[352111503,1738951851151,-500.0,0.00011369,2]
[352111505,1738951851161,-500.0,0.00011369,2]
[352111507,1738951851171,-500.0,0.00011369,2]
[352111509,1738951851181,-500.0,0.00011369,2]
[352111511,1738951851192,-500.0,0.00011369,2]
[352111513,1738951851201,-500.0,0.00011369,2]
[352111515,1738951851211,-526.23267628,0.00011369,2]
[352111517,1738951851221,-500.0,0.00011369,2]
[352111519,1738951851230,-1612.79,0.00011369,2]
[352111521,1738951851240,-342.89392352,0.00011369,2]
[352111523,1738951851250,-500.0,0.00011369,2]
[352111525,1738951851259,-500.0,0.00011369,2]
[352111527,1738951851268,-937.89,0.00011369,2]
[352111529,1738951851277,-779.21,0.00011369,2]
[352111530,1738951851287,-955.08,0.00011369,2]
[352111533,1738951851297,-500.0,0.00011369,2]
[352111535,1738951851306,-652.09,0.00011369,2]
[352111537,1738951851316,-500.0,0.00011369,2]
[352111539,1738951851326,-500.0,0.00011369,2]
[352111541,1738951851336,-500.0,0.00011369,2]
[352111543,1738951851346,-500.0,0.00011369,2]
[352111545,1738951851354,-500.0,0.00011369,2]
[352111547,1738951851363,-958.01,0.00011369,2]
[352111549,1738951851372,-910.53,0.00011369,2]
[352111550,1738951851381,-500.0,0.00011369,2]
[352111552,1738951851392,-819.51,0.00011369,2]
[352111554,1738951851401,-729.946372,0.00011369,2]
[352111557,1738951851411,-500.0,0.00011369,2]
[352111558,1738951851420,-500.0,0.00011369,2]
[352111560,1738951851429,-729.946372,0.00011369,2]
[352111563,1738951851439,-3840.07,0.00011369,2]
[352111565,1738951851448,-500.0,0.00011369,2]
[352111566,1738951851458,-500.0,0.00011369,2]
[352111569,1738951851467,-766.23,0.00011369,2]
[352111571,1738951851477,-500.0,0.00011369,2]
[352111573,1738951851486,-500.0,0.00011369,2]
[352111575,1738951851498,-500.0,0.00011369,2]
[352111577,1738951851507,-500.0,0.00011369,2]
[352111579,1738951851516,-500.0,0.00011369,2]
[352111581,1738951851525,-839.8,0.00011369,2]
[352111583,1738951851535,-3029.27,0.00011369,2]
[352111585,1738951851544,-500.0,0.00011369,2]
[352111587,1738951851553,-1555.5,0.00011369,2]
[352111589,1738951851563,-500.0,0.00011369,2]
[352111591,1738951851571,-793.477982,0.00011369,2]
[352111593,1738951851581,-793.477982,0.00011369,2]
[352111595,1738951851590,-500.0,0.00011369,2]
[352111597,1738951851600,-507.7,0.00011369,2]
[352111599,1738951851610,-500.0,0.00011369,2]
[352111601,1738951851619,-646.63,0.00011369,2]
[352111603,1738951851628,-500.0,0.00011369,2]
[352111605,1738951851638,-461.78918939,0.00011369,2]
[352111607,1738951851647,-500.0,0.00011369,2]
[352111609,1738951851656,-500.0,0.00011369,2]
[352111611,1738951851665,-500.0,0.00011369,2]
[352111613,1738951851674,-500.0,0.00011369,2]
[352111615,1738951851683,-500.0,0.00011369,2]
[352111617,1738951851693,-500.0,0.00011369,2]
[352111618,1738951851702,-832.81,0.00011369,2]
[352111619,1738951851711,-6257.88,0.00011369,2]
[352111620,1738951851719,-500.0,0.00011369,2]
[352111621,1738951851729,-10397.88,0.00011369,2]
[352111622,1738951851739,-734.68,0.00011369,2]
[352111623,1738951851748,-500.0,0.00011369,2]
[352111624,1738951851757,-654.99,0.00011369,2]
[352111625,1738951851765,-500.0,0.00011369,2]
[352111626,1738951851774,-500.0,0.00011369,2]
[352111627,1738951851783,-690.07,0.00011369,2]
[352111628,1738951851792,-500.0,0.00011369,2]
[352111630,1738951851802,-525.76,0.00011369,2]
[352111632,1738951851811,-500.0,0.00011369,2]
[352111634,1738951851820,-274.368864,0.00011369,2]
[352111636,1738951851829,-1266.87,0.00011369,2]
[352111637,1738951851839,-2200.03,0.00011369,2]
[352111639,1738951851849,-4185.0,0.00011369,2]
[352111642,1738951851858,-4706.93,0.00011369,2]
[352111643,1738951851867,-274.368864,0.00011369,2]
[352111646,1738951851877,-837.48,0.00011369,2]
[352111647,1738951851886,-2108.12,0.00011369,2]
[352111649,1738951851895,-910.19,0.00011369,2]
[352111651,1738951851904,-500.0,0.00011369,2]
[352111653,1738951851914,-500.0,0.00011369,2]
[352111655,1738951851924,-4782.15,0.00011369,2]
[352111656,1738951851933,-500.0,0.00011369,2]
[352111657,1738951851944,-500.0,0.00011369,2]
[352111658,1738951851954,-500.0,0.00011369,2]
[352111659,1738951851963,-345.74,0.00011369,2]
[352111660,1738951851972,-500.0,0.00011369,2]
[352111661,1738951851982,-522.44,0.00011369,2]
[352111662,1738951851993,-14855.49,0.00011369,2]
[352111663,1738951852002,-295.36081,0.00011369,2]
[352111664,1738951852012,-1015.7,0.00011369,2]
[352111665,1738951852021,-295.36081,0.00011369,2]
[352111666,1738951852030,-500.0,0.00011369,2]
[352111667,1738951852043,-500.0,0.00011369,2]
[352111668,1738951852053,-491.95714354,0.00011369,2]
[352111669,1738951852062,-1899.91,0.00011369,2]
[352111670,1738951852201,-500.0,0.00011369,2]
[352111671,1738951852211,-500.0,0.00011369,2]
[352111672,1738951852221,-1080.87,0.00011369,2]
[352111673,1738951852230,-500.0,0.00011369,2]
[352111674,1738951852240,-42882.94,0.00011369,2]
[352111675,1738951852250,-557.93059378,0.00011369,2]
[352111676,1738951852259,-2217.79,0.00011369,2]
[352111677,1738951852268,-588.55,0.00011369,2]
[352111678,1738951852278,-682.663396,0.00011369,2]
[352111679,1738951852287,-1092.696352,0.00011369,2]
[352111680,1738951852297,-682.663396,0.00011369,2]
[352111681,1738951852307,-500.0,0.00011369,2]
[352111682,1738951852316,-1184.64,0.00011369,2]
[352111683,1738951852325,-1092.696352,0.00011369,2]
[352111684,1738951852334,-500.0,0.00011369,2]
[352111685,1738951852344,-5616.92,0.00011369,2]
[352111686,1738951852353,-500.0,0.00011369,2]
[352111687,1738951852362,-694.18,0.00011369,2]
[352111689,1738951852372,-500.0,0.00011369,2]
[352111690,1738951852381,-1799.24042861,0.00011369,2]
[352111696,1738951852580,-229.69957139,0.00011369,2]
[352111697,1738951852589,-312.35042861,0.00011369,2]
[352111698,1738951852606,-187.64957139,0.00011369,2]
[352111699,1738951852615,-2546.25,0.00011369,2]
[352111700,1738951852625,-693.43,0.00011369,2]
[352111701,1738951852634,-3754.08524381,0.00011369,2]
[352111702,1738951852646,-449.02567759,0.00011369,2]
[352111710,1738951852959,-571.76242145,0.00011095,2]
[352111711,1738951853348,-500.0,0.00010958,2]
[352111712,1738951853358,-1589.20757855,0.00011095,2]
[352111713,1738951853368,-500.0,0.00011095,2]
[352111714,1738951853377,-2160.97,0.00011232,2]
[352111715,1738951853387,-500.0,0.00011232,2]
[352111716,1738951853396,-151.0,0.00011232,2]
[352111717,1738951853406,-2840.5690786,0.00011369,2]
[352111718,1738951853415,-500.0,0.00011369,2]
[352111719,1738951853425,-1608.85,0.00011369,2]
[352111720,1738951853434,-1043.44,0.00011369,2]
[352111721,1738951853444,-5757.71,0.00011369,2]
[352111722,1738951853454,-500.0,0.00011369,2]
[352111723,1738951853463,-2238.72,0.00011369,2]
[352111724,1738951853473,-500.0,0.00011369,2]
[352111725,1738951853482,-500.0,0.00011369,2]
[352111726,1738951853492,-961.33,0.00011369,2]
[352111727,1738951853502,-2939.94,0.00011369,2]
[352111728,1738951853510,-500.0,0.00011369,2]
[352111729,1738951853519,-572.15,0.00011369,2]
[352111730,1738951853529,-2793.36,0.00011369,2]
[352111731,1738951853538,-235.941853,0.00011369,2]
[352111732,1738951853547,-754.7,0.00011369,2]
[352111733,1738951853557,-500.0,0.00011369,2]
[352111734,1738951853566,-235.941853,0.00011369,2]
[352111735,1738951853576,-500.0,0.00011369,2]
[352111736,1738951853586,-14498.7,0.00011369,2]
[352111738,1738951853596,-500.0,0.00011369,2]
[352111739,1738951853605,-1614.6,0.00011369,2]
[352111741,1738951853617,-500.0,0.00011369,2]
[352111743,1738951853626,-768.81623349,0.00011369,2]
[352111775,1738952424148,3760.0,8.002e-05,2]
[352111835,1738953032761,-300.0,9.852e-05,2]
[352111837,1738953032770,-532.70729351,9.853e-05,2]
[352111881,1738953038330,-24367.29270649,9.853e-05,2]
[352111883,1738953038339,-256.03679004,9.92e-05,2]
[352111885,1738953038348,-158.0,0.00010404,2]
[352111887,1738953038358,-159.0,0.0001056,2]
[352111889,1738953038367,-420.0,0.00010838,2]
[352111891,1738953038376,-180.96845589,0.00010858,2]
[352111893,1738953038386,-3000.0,0.00010858,2]
[352111895,1738953038399,-151.023,0.0001093,2]
[352111897,1738953038408,-385.0417626,0.00010957,2]
[352111899,1738953038417,-165.01789826,0.00010957,2]
[352111901,1738953038427,-500.0,0.00010958,2]
[352111903,1738953038436,-500.0,0.00010958,2]
[352111905,1738953038445,-500.0,0.00010958,2]
[352111908,1738953038454,-500.0,0.00010958,2]
[352111912,1738953038464,-531.31439289,0.00010958,2]
[352111914,1738953038473,-500.0,0.00010958,2]
[352111916,1738953038483,-500.0,0.00010958,2]
[352111918,1738953038492,-500.0,0.00010958,2]
[352111920,1738953038501,-500.0,0.00010958,2]
[352111922,1738953038511,-500.0,0.00010958,2]
[352111924,1738953038520,-500.0,0.00010958,2]
[352111926,1738953038529,-500.0,0.00010958,2]
[352111928,1738953038538,-500.0,0.00010958,2]
[352111930,1738953038548,-500.0,0.00010958,2]
[352111932,1738953038557,-500.0,0.00010958,2]
[352111934,1738953038567,-500.0,0.00010958,2]
[352111936,1738953038576,-500.0,0.00010958,2]
[352111938,1738953038586,-500.0,0.00010958,2]
[352111940,1738953038595,-541.97166922,0.00010958,2]
[352111942,1738953038604,-500.0,0.00010958,2]
[352111944,1738953038613,-478.70808972,0.00010958,2]
[352111946,1738953038623,-500.0,0.00010958,2]
[352111948,1738953038632,-500.0,0.00010958,2]
[352111950,1738953038641,-500.0,0.00010958,2]
[352111952,1738953038651,-500.0,0.00010958,2]
[352111954,1738953038660,-500.0,0.00010958,2]
[352111956,1738953038669,-512.66413506,0.00010958,2]
[352111958,1738953038678,-500.0,0.00010958,2]
[352111960,1738953038688,-500.0,0.00010958,2]
[352111962,1738953038697,-500.0,0.00010958,2]
[352111964,1738953038706,-187.17761615,0.00010958,2]
[352111966,1738953038716,-500.0,0.00010958,2]
[352111968,1738953038726,-500.0,0.00010958,2]
[352111970,1738953038735,-500.0,0.00010958,2]
[352111972,1738953038744,-500.0,0.00010958,2]
[352111974,1738953038753,-500.0,0.00010958,2]
[352111976,1738953038762,-500.0,0.00010958,2]
[352111978,1738953038771,-500.0,0.00010958,2]
[352111980,1738953038781,-500.0,0.00010958,2]
[352111982,1738953038790,-500.0,0.00010958,2]
[352111984,1738953038799,-500.0,0.00010958,2]
[352111986,1738953038808,-500.0,0.00010958,2]
[352111988,1738953038818,-500.0,0.00010958,2]
[352111990,1738953038827,-500.0,0.00010958,2]
[352111992,1738953038836,-500.0,0.00010958,2]
[352111994,1738953038846,-500.0,0.00010958,2]
[352111996,1738953038856,-500.0,0.00010958,2]
[352111998,1738953038865,-500.0,0.00010958,2]
[352112000,1738953038874,-500.0,0.00010958,2]
[352112002,1738953038884,-500.0,0.00010958,2]
[352112004,1738953038893,-500.0,0.00010958,2]
[352112006,1738953038902,-500.0,0.00010958,2]
[352112008,1738953038911,-500.0,0.00010958,2]
[352112010,1738953038921,-212.5502707,0.00010958,2]
[352112012,1738953038930,-500.0,0.00010958,2]
[352112014,1738953038940,-500.0,0.00010958,2]
[352112016,1738953038949,-500.0,0.00010958,2]
[352112018,1738953038959,-500.0,0.00010958,2]
[352112020,1738953038968,-641.96367178,0.00010958,2]
[352112022,1738953038977,-501.30723013,0.00010958,2]
[352112024,1738953038986,-500.0,0.00010958,2]
[352112026,1738953038996,-500.0,0.00010958,2]
[352112028,1738953039005,-500.0,0.00010958,2]
[352112030,1738953039014,-500.0,0.00010958,2]
[352112032,1738953039023,-500.0,0.00010958,2]
[352112034,1738953039033,-330.44330893,0.00010958,2]
[352112036,1738953039042,-500.0,0.00010958,2]
[352112038,1738953039052,-500.0,0.00010958,2]
[352112040,1738953039061,-500.0,0.00010958,2]
[352112042,1738953039070,-500.0,0.00010958,2]
[352112044,1738953039080,-502.59485842,0.00010958,2]
[352112046,1738953039089,-500.0,0.00010958,2]
[352112048,1738953039098,-500.0,0.00010958,2]
[352112050,1738953039108,-347.86449026,0.00010958,2]
[352112052,1738953039117,-500.0,0.00010958,2]
[352112054,1738953039127,-881.22,0.00010958,2]